bitfinex/quotes_SOLUSD_20250903
["timestamp","ask_amount","ask_price","bid_price","bid_amount"]
[1756862239349,0.06,208.63,208.62,13.59559401]
[1756862239552,0.78,208.63,208.62,51.25559401]
[1756862239750,0.06,208.63,208.62,51.25559401]
[1756862240374,0.78,208.63,208.62,51.25559401]
[1756862240749,0.06,208.63,208.62,51.25559401]
[1756862240956,0.78,208.63,208.62,56.04899828]
[1756862243278,3.43285972,208.63,208.62,116.33999998]
[1756862244369,0.78,208.63,208.62,116.33999998]
[1756862244572,0.06,208.63,208.62,135.40899826]
[1756862244771,0.72,208.74,208.66,13.59559401]
[1756862244974,0.72,208.74,208.68,16.24845373]
[1756862245160,0.72,208.74,208.67,38.74648471]
[1756862245161,3.37285972,208.74,208.7,13.59559401]
[1756862245356,0.72,208.73,208.71,37.64]
[1756862245971,2.65285972,208.74,208.71,37.64]
[1756862247364,2.65285972,208.75,208.71,37.64]
[1756862247549,3.37285972,208.75,208.71,37.64]
[1756862248283,3.37285972,208.77,208.71,43.11124261]
[1756862248859,4.78892362,208.82,208.72,16.24845373]
[1756862249054,4.78892362,208.82,208.73,37.64]
[1756862249055,2.65285972,208.78,208.73,37.64]
[1756862249259,0.72,208.83,208.76,13.59559401]
[1756862249459,0.72,208.83,208.77,37.64]
[1756862249460,2.65285972,208.82,208.77,37.64]
[1756862249689,0.72,208.82,208.77,38.32]
[1756862249975,3.37285972,208.82,208.77,38.32]
[1756862250174,14.39573887,208.87,208.78,5.46973081]
[1756862250381,3.97655838,208.97,208.84,2.65285972]
[1756862250553,0.72,208.93,208.84,0.42648471]
[1756862250757,2.65285972,208.91,208.85,51.33559401]
[1756862250983,2.65285972,208.92,208.86,3.33285972]
[1756862251183,2.65285972,208.92,208.87,37.74]
[1756862251381,2.65285972,208.93,208.87,37.74]
[1756862251562,7.00871432,208.93,208.87,38.42]
[1756862251771,0.72,208.94,208.87,43.20750814]
[1756862252265,7.00871432,208.93,208.87,50.21622246]
[1756862252969,7.00871432,208.93,208.88,37.72]
[1756862253165,0.72,208.94,208.88,37.72]
[1756862253479,7.00871432,208.93,208.87,7.68871432]
[1756862253657,7.72871432,208.92,208.86,13.59559401]
[1756862253857,7.00871432,208.91,208.87,37.72]
[1756862254162,7.00871432,208.93,208.88,0.68]
[1756862254367,7.00871432,208.94,208.88,7.68871432]
[1756862254762,7.00871432,208.93,208.88,0.68]
[1756862255480,7.00871432,208.93,208.89,37.7]
[1756862255679,7.00871432,208.93,208.89,38.38]
[1756862256068,7.72871432,208.93,208.89,37.7]
[1756862256588,7.00871432,208.92,208.9,37.68]
[1756862257081,7.00871432,208.92,208.87,79.35999998]
[1756862257392,7.00871432,208.92,208.88,38.36]
[1756862257858,7.00871432,208.92,208.89,37.66]
[1756862258769,7.00871432,208.92,208.88,0.68]
[1756862259084,7.00871432,208.92,208.89,37.66]
[1756862259296,7.00871432,208.93,208.89,38.34]
[1756862259578,7.00871432,208.92,208.89,38.34]
[1756862259787,0.72,208.93,208.89,38.34]
[1756862260160,7.00871432,208.92,208.89,38.34]
[1756862260367,7.00871432,208.92,208.89,37.66]
[1756862261190,7.00871432,208.92,208.89,38.34]
[1756862261597,10.22719503,208.93,208.89,38.34]
[1756862261894,10.94719503,208.93,208.89,37.66]
[1756862262064,10.22719503,208.92,208.89,37.66]
[1756862262266,10.22719503,208.92,208.87,10.93719503]
[1756862262471,10.22719503,208.92,208.88,38.33]
[1756862263285,10.22719503,208.92,208.87,15.01483432]
[1756862263286,0.06,208.96,208.89,15.14]
[1756862263491,0.06,208.96,208.93,13.59559401]
[1756862263677,0.06,208.96,208.94,37.82]
[1756862263877,10.22719503,209.0,208.94,38.53]
[1756862264268,10.22719503,209.0,208.94,43.31584772]
[1756862264469,26.42648471,209.07,208.89,0.71]
[1756862264470,10.22719503,208.96,208.89,0.71]
[1756862264689,10.22719503,208.97,208.9,61.66278904]
[1756862264876,10.22719503,208.97,208.9,62.37278904]
[1756862265076,0.66,208.98,208.91,10.22719503]
[1756862265299,0.66,208.98,208.91,10.93719503]
[1756862265595,10.22719503,208.97,208.91,10.93719503]
[1756862266284,10.22719503,208.95,208.92,37.86]
[1756862266589,10.22719503,208.93,208.92,37.86]
[1756862266978,10.88719503,208.93,208.92,37.86]
[1756862267496,10.88719503,208.93,208.9,37.86]
[1756862267695,10.22719503,208.91,208.89,37.86]
[1756862267899,10.22719503,208.9,208.89,37.86]
[1756862271576,4.13106441,208.9,208.89,37.86]
[1756862272076,4.79106441,208.9,208.84,26.0]
[1756862272390,4.13106441,208.87,208.85,37.82]
[1756862272596,4.13106441,208.88,208.85,37.82]
[1756862272905,4.13106441,208.86,208.85,37.82]
[1756862273077,0.66,208.87,208.85,37.82]
[1756862273399,4.13106441,208.86,208.85,37.82]
[1756862273809,4.79106441,208.86,208.85,37.82]
[1756862274105,4.79106441,208.86,208.83,37.8]
[1756862274310,4.13106441,208.84,208.83,37.8]
[1756862274872,4.13106441,208.84,208.79,5.49936982]
[1756862275073,4.13106441,208.83,208.8,38.51]
[1756862275701,4.13106441,208.83,208.8,43.29925693]
[1756862276978,0.66,208.86,208.81,0.71]
[1756862277179,4.13106441,208.83,208.81,0.71]
[1756862277716,4.13106441,208.83,208.8,42.58925693]
[1756862277888,4.13106441,208.83,208.8,43.29925693]
[1756862278089,4.13106441,208.83,208.81,37.76]
[1756862278610,0.66,208.86,208.81,37.76]
[1756862278611,4.13106441,208.82,208.81,37.76]
[1756862278784,4.79106441,208.82,208.71,5.50133726]
[1756862278983,4.13106441,208.74,208.72,0.71]
[1756862279194,4.13106441,208.74,208.73,37.78]
[1756862280503,4.79106441,208.74,208.73,37.78]
[1756862280706,4.79106441,208.74,208.73,0.03]
[1756862282812,9.8660362,208.74,208.73,0.03]
[1756862282991,10.00819777,208.74,208.73,0.03]
[1756862284202,61.58041341,208.74,208.66,0.03]
[1756862284406,0.14216157,208.7,208.66,0.03]
[1756862284700,4.13106441,208.67,208.66,0.03]
[1756862285422,4.79106441,208.67,208.66,0.03]
[1756862286410,0.66,208.76,208.66,4.87106441]
[1756862286611,4.13106441,208.74,208.69,4.13106441]
[1756862286838,0.66,208.78,208.7,38.55]
[1756862286994,4.13106441,208.75,208.7,37.84]
[1756862287197,4.13106441,208.74,208.71,0.71]
[1756862287406,10.24522769,208.74,208.72,0.71]
[1756862287617,10.24522769,208.75,208.73,0.71]
[1756862289525,10.24522769,208.75,208.71,0.71]
[1756862289824,10.24522769,208.75,208.72,0.71]
[1756862290030,10.24522769,208.73,208.7,37.84]
[1756862290195,10.24522769,208.73,208.68,0.71]
[1756862290196,10.24522769,208.71,208.68,0.71]
[1756862290398,10.24522769,208.7,208.68,0.71]
[1756862291196,10.24522769,208.71,208.68,0.71]
[1756862291921,10.24522769,208.71,208.68,5.50189873]
[1756862292416,10.24522769,208.71,208.68,0.71]
[1756862292613,10.24522769,208.71,208.68,5.50199943]
[1756862292917,10.24522769,208.71,208.68,0.71]
[1756862293518,10.24522769,208.69,208.67,37.82]
[1756862293718,10.24522769,208.7,208.68,0.71]
[1756862294017,10.24522769,208.71,208.68,0.71]
[1756862294693,0.69,208.78,208.7,10.24522769]
[1756862295020,10.24522769,208.79,208.73,10.24522769]
[1756862295195,10.24522769,208.79,208.74,0.71]
[1756862295390,10.24522769,208.78,208.75,0.71]
[1756862296130,10.24522769,208.78,208.73,0.71]
[1756862296309,10.24522769,208.78,208.73,4.79087816]
[1756862296507,10.24522769,208.78,208.74,0.71]
[1756862298420,10.93522769,208.78,208.74,0.71]
[1756862298928,10.93522769,208.78,208.74,5.500541]
[1756862299129,10.24522769,208.79,208.74,5.500541]
[1756862299541,10.24522769,208.8,208.75,0.71]
[1756862299911,10.93522769,208.8,208.75,0.71]
[1756862300240,10.93522769,208.8,208.75,38.47]
[1756862300409,10.93522769,208.8,208.75,117.14999998]
[1756862300616,10.93522769,208.8,208.76,4.79018969]
[1756862302038,10.93522769,208.8,208.75,117.14999998]
[1756862302334,4.78867872,208.83,208.73,0.03]
[1756862302335,10.24522769,208.76,208.73,0.03]
[1756862302540,10.24522769,208.74,208.73,0.03]
[1756862302740,10.93522769,208.74,208.73,0.03]
[1756862304839,15.72587634,208.74,208.73,0.03]
[1756862305721,10.93522769,208.74,208.73,0.03]
[1756862306723,0.69,208.77,208.73,0.03]
[1756862306929,10.24522769,208.74,208.73,0.03]
[1756862307325,10.93522769,208.74,208.73,0.03]
[1756862307623,10.24522769,208.78,208.73,10.98522769]
[1756862307834,10.24522769,208.78,208.74,0.71]
[1756862308118,10.24522769,208.79,208.75,0.71]
[1756862308940,10.24522769,208.79,208.75,5.5004121]
[1756862309143,10.24522769,208.78,208.75,5.5004121]
[1756862309518,10.24522769,208.78,208.75,4.7904121]
[1756862309938,10.24522769,208.78,208.74,4.79061549]
[1756862310152,10.24522769,208.77,208.74,4.79061549]
[1756862310521,10.24522769,208.77,208.74,83.47061547]
[1756862310725,10.24522769,208.77,208.74,84.18061547]
[1756862310954,10.24522769,208.75,208.74,78.67999998]
[1756862311863,10.24522769,208.76,208.74,78.67999998]
[1756862312527,10.24522769,208.75,208.74,78.67999998]
[1756862315058,10.24522769,208.75,208.73,0.03]
[1756862315059,10.93522769,208.75,208.73,0.03]
[1756862315255,10.24522769,208.74,208.73,0.03]
[1756862315661,10.93522769,208.74,208.73,0.03]
[1756862316636,15.72587634,208.74,208.73,0.03]
[1756862317765,10.93522769,208.74,208.73,0.03]
[1756862319064,15.72587634,208.74,208.73,0.03]
[1756862320237,10.93522769,208.74,208.73,0.03]
[1756862320451,0.69,208.76,208.73,0.03]
[1756862320638,1.92016897,208.76,208.73,0.74]
[1756862320845,10.24522769,208.77,208.74,0.71]
[1756862321044,0.06,208.78,208.75,0.71]
[1756862321045,10.30522769,208.78,208.75,0.71]
[1756862321259,0.06,208.78,208.76,0.69]
[1756862321766,7.07779709,208.78,208.73,79.39999998]
[1756862321950,7.01779709,208.75,208.73,79.39999998]
[1756862322350,7.01779709,208.76,208.73,79.39999998]
[1756862322557,7.01779709,208.76,208.74,0.69]
[1756862323350,7.01779709,208.77,208.75,0.69]
[1756862323549,7.07779709,208.78,208.75,0.69]
[1756862324456,0.06,208.78,208.76,0.69]
[1756862324656,0.06,208.78,208.76,7.70779709]
[1756862325166,0.06,208.78,208.77,0.69]
[1756862326639,7.07779709,208.78,208.75,0.69]
[1756862326965,7.01779709,208.77,208.73,84.19085514]
[1756862327143,7.01779709,208.77,208.74,38.41]
[1756862327764,7.01779709,208.76,208.74,37.7]
[1756862328063,7.01779709,208.76,208.73,84.19076718]
[1756862328272,7.01779709,208.77,208.74,38.39]
[1756862328559,7.07779709,208.78,208.75,0.69]
[1756862330757,0.06,208.78,208.75,7.70779709]
[1756862331146,0.06,208.78,208.74,44.71779709]
[1756862331346,0.69,208.77,208.74,37.66]
[1756862331559,0.06,208.78,208.75,0.69]
[1756862331746,0.06,208.78,208.75,7.70779709]
[1756862331945,0.06,208.78,208.76,0.69]
[1756862332166,0.06,208.78,208.75,7.01779709]
[1756862332472,0.06,208.78,208.75,7.70779709]
[1756862334387,0.06,208.78,208.75,86.38779707]
[1756862335475,0.06,208.78,208.75,82.01674419]
[1756862336252,0.06,208.78,208.75,86.80714495]
[1756862337969,0.06,208.78,208.76,37.66]
[1756862338671,0.06,208.78,208.77,0.69]
[1756862339398,0.06,208.78,208.76,37.66]
[1756862339553,0.06,208.78,208.75,79.36999998]
[1756862339753,0.06,208.78,208.76,37.66]
[1756862340161,0.06,208.78,208.76,117.02999998]
[1756862340379,0.06,208.78,208.77,8.12670445]
[1756862340587,0.06,208.78,208.77,21.72229846]
[1756862340769,0.06,208.78,208.77,19.07555425]
[1756862341077,0.06,208.78,208.77,38.37]
[1756862341481,0.06,208.78,208.77,37.68]
[1756862341868,0.06,208.78,208.74,78.67999998]
[1756862342181,0.75,208.78,208.74,78.67999998]
[1756862342389,2.64674421,208.75,208.73,0.03]
[1756862342694,2.64674421,208.74,208.73,0.03]
[1756862342895,3.33674421,208.74,208.73,0.03]
[1756862343782,3.76322892,208.74,208.73,0.03]
[1756862344587,8.55387757,208.74,208.73,0.03]
[1756862345159,12.34781274,208.74,208.73,0.03]
[1756862345457,8.55387757,208.74,208.73,0.03]
[1756862350967,0.14216157,208.74,208.73,0.03]
[1756862351275,34.24955443,208.74,208.73,0.03]
[1756862351479,34.53387757,208.74,208.73,0.03]
[1756862352590,36.45432312,208.74,208.73,0.03]
[1756862353090,74.11432312,208.74,208.73,0.03]
[1756862354286,36.45432312,208.74,208.73,0.03]
[1756862354587,48.11432312,208.74,208.73,0.03]
[1756862355089,48.17432312,208.74,208.73,0.03]
[1756862355476,45.52757891,208.74,208.73,0.03]
[1756862355672,48.17432312,208.74,208.73,0.03]
[1756862360396,26.42648471,208.71,208.68,0.03]
[1756862360700,0.42648471,208.68,208.66,0.03]
[1756862360879,50.91372105,208.67,208.66,0.03]
[1756862361074,51.58372105,208.67,208.66,0.03]
[1756862361395,26.0,208.64,208.63,0.03]
[1756862361694,66.30674421,208.64,208.63,0.03]
[1756862362274,71.09968899,208.64,208.63,0.03]
[1756862362596,71.5261737,208.64,208.63,0.03]
[1756862363374,33.8661737,208.64,208.63,0.03]
[1756862363579,73.46744943,208.64,208.63,0.72]
[1756862363781,71.5461737,208.64,208.63,0.72]
[1756862364407,71.5461737,208.64,208.63,0.03]
[1756862365396,72.2161737,208.64,208.63,0.03]
[1756862365606,73.46744943,208.64,208.63,0.03]
[1756862366189,74.13744943,208.64,208.63,0.03]
[1756862366708,29.07322892,208.62,208.61,0.03]
[1756862366880,66.89322892,208.62,208.61,0.03]
[1756862367697,68.81468923,208.62,208.61,0.03]
[1756862368294,73.6080935,208.62,208.61,0.03]
[1756862368497,70.96134929,208.62,208.61,0.03]
[1756862368698,73.6080935,208.62,208.61,0.72]
[1756862368892,47.18160879,208.62,208.61,0.72]
[1756862369206,2.64674421,208.62,208.61,0.72]
[1756862369778,50.06489768,208.63,208.61,0.72]
[1756862369978,2.64674421,208.62,208.61,0.72]
[1756862372988,7.47171575,208.63,208.61,0.72]
[1756862373202,2.64674421,208.62,208.61,0.03]
[1756862375317,2.64674421,208.62,208.61,0.72]
[1756862375719,2.64674421,208.62,208.61,0.03]
[1756862375897,2.64674421,208.62,208.61,0.72]
[1756862376099,2.64674421,208.62,208.61,0.03]
[1756862376317,3.31674421,208.62,208.61,0.03]
[1756862376524,2.64674421,208.62,208.61,0.03]
[1756862376923,41.05674421,208.62,208.61,0.03]
[1756862377132,45.18014848,208.62,208.61,0.03]
[1756862377518,42.53340427,208.62,208.61,0.03]
[1756862377829,2.64674421,208.62,208.61,0.72]
[1756862378037,0.06,208.74,208.61,0.72]
[1756862378205,0.06,208.74,208.73,2.64674421]
[1756862378405,0.06,208.74,208.71,2.64674421]
[1756862378937,0.06,208.74,208.71,28.64674421]
[1756862379129,0.06,208.74,208.71,26.0]
[1756862379449,0.06,208.74,208.71,28.64674421]
[1756862379632,0.06,208.74,208.71,33.43807827]
[1756862379927,0.06,208.74,208.73,2.64674421]
[1756862380229,0.06,208.74,208.72,2.64674421]
[1756862381131,2.64674421,208.73,208.69,26.0]
[1756862381711,7.43762973,208.73,208.69,26.0]
[1756862381934,7.43762973,208.73,208.66,56.72806463]
[1756862381935,2.64674421,208.7,208.62,4.79340427]
[1756862382132,2.64674421,208.67,208.61,0.03]
[1756862382430,2.64674421,208.7,208.64,2.64674421]
[1756862382840,0.42648471,208.72,208.64,2.64674421]
[1756862383038,2.64674421,208.68,208.62,2.64674421]
[1756862383216,2.64674421,208.67,208.62,26.0]
[1756862383417,2.64674421,208.67,208.61,4.17080846]
[1756862383418,4.14080846,208.67,208.61,4.17080846]
[1756862383735,4.14080846,208.66,208.61,0.03]
[1756862383911,5.49212631,208.68,208.61,26.03]
[1756862384113,4.14080846,208.68,208.62,4.14080846]
[1756862384834,4.14080846,208.69,208.63,4.14080846]
[1756862385135,4.14080846,208.7,208.64,4.14080846]
[1756862385635,4.14080846,208.69,208.63,4.14080846]
[1756862386222,4.14080846,208.67,208.61,30.17080846]
[1756862387539,8.93316465,208.67,208.61,30.17080846]
[1756862387740,4.14080846,208.64,208.61,0.03]
[1756862388037,4.14080846,208.63,208.61,0.03]
[1756862389143,4.14080846,208.64,208.61,0.03]
[1756862389929,8.93380251,208.64,208.61,0.03]
[1756862390129,9.63380251,208.64,208.61,0.03]
[1756862390331,4.84080846,208.64,208.61,0.03]
[1756862391542,0.7,208.64,208.61,0.03]
[1756862392041,0.7,208.63,208.61,0.03]
[1756862392433,9.63355084,208.65,208.61,0.03]
[1756862392746,4.84080846,208.64,208.61,0.03]
[1756862393243,0.7,208.64,208.61,0.03]
[1756862394341,8.93355084,208.65,208.61,0.03]
[1756862394531,0.7,208.63,208.61,0.03]
[1756862395145,5.49318601,208.63,208.61,0.03]
[1756862396146,0.7,208.63,208.61,0.03]
[1756862396628,4.7931803,208.63,208.61,0.03]
[1756862396945,0.7,208.62,208.61,0.03]
[1756862400854,0.7,208.62,208.58,0.03]
[1756862400855,9.63421273,208.62,208.58,0.03]
[1756862401059,4.14080846,208.59,208.58,0.03]
[1756862401428,4.84080846,208.59,208.58,0.03]
[1756862402252,10.06138684,208.59,208.58,0.03]
[1756862402730,26.0,208.57,208.56,0.03]
[1756862402930,26.42648471,208.56,208.55,0.03]
[1756862403148,31.26729317,208.56,208.55,0.03]
[1756862404245,36.06207644,208.56,208.55,0.03]
[1756862404556,40.2028849,208.56,208.55,0.03]
[1756862406157,53.79847891,208.56,208.55,0.03]
[1756862407042,53.79847891,208.56,208.53,0.03]
[1756862407043,14.02207872,208.55,208.53,0.03]
[1756862407349,42.66729317,208.54,208.53,0.03]
[1756862407555,43.36729317,208.54,208.53,0.03]
[1756862408462,31.92172782,208.54,208.53,0.03]
[1756862408641,36.06253628,208.54,208.53,0.03]
[1756862409044,31.92172782,208.54,208.53,0.03]
[1756862409241,0.7,208.58,208.53,0.03]
[1756862409549,4.14080846,208.55,208.53,0.03]
[1756862409756,0.7,208.59,208.53,0.14]
[1756862409957,4.14080846,208.57,208.53,0.14]
[1756862410846,4.14080846,208.57,208.53,0.03]
[1756862411849,4.14080846,208.55,208.53,0.03]
[1756862413153,4.14080846,208.57,208.53,0.03]
[1756862413370,4.14080846,208.57,208.53,0.14]
[1756862413762,0.68,208.56,208.53,0.03]
[1756862413959,0.68,208.59,208.53,0.03]
[1756862414159,4.14080846,208.57,208.53,0.14]
[1756862414550,4.14080846,208.57,208.53,0.03]
[1756862416781,4.14080846,208.61,208.55,4.14080846]
[1756862417452,4.14080846,208.6,208.54,4.25080846]
[1756862417766,4.14080846,208.6,208.54,9.04584358]
[1756862417974,4.14080846,208.61,208.55,4.14080846]
[1756862418162,4.14080846,208.61,208.54,8.93584358]
[1756862418163,4.14080846,208.6,208.54,8.93584358]
[1756862418370,4.14080846,208.6,208.53,79.73]
[1756862418371,4.14080846,208.59,208.53,121.91080846]
[1756862419583,0.68,208.6,208.55,4.14080846]
[1756862419584,4.14080846,208.6,208.55,4.14080846]
[1756862419763,4.14080846,208.6,208.55,4.25080846]
[1756862419950,4.14080846,208.6,208.55,0.11]
[1756862420275,4.14080846,208.6,208.55,83.95080846]
[1756862420469,4.14080846,208.6,208.55,88.74582164]
[1756862420678,4.14080846,208.61,208.55,88.74582164]
[1756862421176,4.14080846,208.61,208.55,84.60501318]
[1756862421378,4.14080846,208.62,208.56,4.25080846]
[1756862421875,0.68,208.63,208.56,0.11]
[1756862421876,4.14080846,208.61,208.56,0.11]
[1756862422052,4.82080846,208.61,208.56,0.11]
[1756862422375,4.14080846,208.61,208.57,4.79455338]
[1756862423375,0.96432314,208.66,208.58,4.25080846]
[1756862423557,4.14080846,208.67,208.61,4.14080846]
[1756862423756,0.74,208.68,208.62,4.14080846]
[1756862423946,4.88080846,208.68,208.62,4.14080846]
[1756862424375,4.88080846,208.68,208.63,4.79317451]
[1756862424550,0.68,208.67,208.63,4.79317451]
[1756862425252,0.06,208.64,208.63,4.79317451]
[1756862425876,0.06,208.64,208.62,42.10080846]
[1756862426377,0.68,208.63,208.61,79.7]
[1756862426556,4.14080846,208.63,208.6,37.96]
[1756862426873,4.82080846,208.63,208.6,37.96]
[1756862427575,0.68,208.62,208.6,37.96]
[1756862427872,4.14080846,208.63,208.6,37.96]
[1756862428179,4.14080846,208.61,208.59,79.7]
[1756862428366,0.68,208.62,208.57,37.96]
[1756862428367,4.82080846,208.6,208.57,37.96]
[1756862428571,4.14080846,208.58,208.53,0.03]
[1756862428778,4.14080846,208.54,208.53,0.03]
[1756862429523,4.82080846,208.54,208.53,0.03]
[1756862429866,5.24729317,208.54,208.53,0.03]
[1756862430485,5.90172782,208.54,208.53,0.03]
[1756862430783,10.04253628,208.54,208.53,0.03]
[1756862430971,0.68,208.54,208.53,0.03]
[1756862431163,4.82080846,208.54,208.53,0.03]
[1756862431580,10.94656336,208.54,208.53,0.03]
[1756862431955,15.74180647,208.54,208.53,0.03]
[1756862432475,10.94656336,208.54,208.53,0.03]
[1756862433075,10.26656336,208.55,208.53,0.03]
[1756862433483,10.26656336,208.54,208.53,0.03]
[1756862434180,10.94656336,208.54,208.53,0.03]
[1756862434784,15.74180647,208.54,208.53,0.03]
[1756862435972,16.16829118,208.54,208.53,0.03]
[1756862442389,11.37304807,208.54,208.53,0.03]
[1756862442586,10.94656336,208.54,208.53,0.03]
[1756862442775,10.26656336,208.54,208.53,0.03]
[1756862443694,7.03604711,208.54,208.53,0.03]
[1756862444076,0.06,208.55,208.53,0.03]
[1756862448989,7.75604711,208.55,208.53,0.03]
[1756862449503,7.69604711,208.54,208.53,0.03]
[1756862450206,12.49129022,208.54,208.53,0.03]
[1756862451202,12.91777493,208.54,208.53,0.03]
[1756862451710,8.53624046,208.54,208.53,0.03]
[1756862452408,22.13183447,208.54,208.53,0.03]
[1756862455300,26.0,208.52,208.51,0.03]
[1756862455493,42.67659136,208.52,208.51,0.03]
[1756862455795,43.33659136,208.52,208.51,0.03]
[1756862456513,81.23659136,208.52,208.51,0.03]
[1756862457115,48.13229441,208.52,208.51,0.03]
[1756862457413,86.03229441,208.52,208.51,0.03]
[1756862457710,72.4367004,208.52,208.51,0.03]
[1756862458715,31.88218776,208.52,208.51,0.03]
[1756862458922,72.4367004,208.52,208.51,0.03]
[1756862460185,34.5367004,208.52,208.51,0.03]
[1756862460392,7.45021569,208.52,208.51,0.03]
[1756862463091,4.79570305,208.52,208.51,0.03]
[1756862463417,0.06,208.55,208.51,2.68451264]
[1756862463619,0.06,208.55,208.51,0.14]
[1756862463916,0.06,208.55,208.51,2.79451264]
[1756862464091,0.06,208.55,208.52,2.65451264]
[1756862464794,0.06,208.55,208.53,2.65451264]
[1756862465222,0.06,208.55,208.52,2.76451264]
[1756862466201,0.06,208.55,208.51,2.68451264]
[1756862466424,0.06,208.55,208.52,2.76451264]
[1756862466732,0.06,208.55,208.54,2.65451264]
[1756862467228,0.06,208.55,208.52,79.81]
[1756862467404,0.06,208.55,208.54,2.65451264]
[1756862469040,0.72,208.55,208.52,79.7]
[1756862469207,5.5152229,208.55,208.52,79.7]
[1756862470222,2.65451264,208.53,208.51,0.03]
[1756862470525,0.14216157,208.53,208.51,0.03]
[1756862470737,0.28432314,208.54,208.51,0.03]
[1756862470901,2.65451264,208.53,208.51,0.03]
[1756862471105,34.5367004,208.52,208.51,0.03]
[1756862472123,31.45570305,208.52,208.51,0.03]
[1756862472304,34.5367004,208.52,208.51,0.03]
[1756862473632,48.13229441,208.52,208.51,0.03]
[1756862475218,14.02207872,208.51,208.5,0.03]
[1756862475426,21.4725244,208.51,208.5,1e-08]
[1756862475620,22.1425244,208.51,208.5,1e-08]
[1756862477730,60.0025244,208.51,208.5,1e-08]
[1756862478106,22.1425244,208.51,208.5,1e-08]
[1756862478410,60.0025244,208.51,208.5,1e-08]
[1756862479517,59.9825244,208.51,208.5,1e-08]
[1756862481915,22.1425244,208.51,208.5,1e-08]
[1756862482107,59.9625244,208.51,208.5,1e-08]
[1756862483118,26.42648471,208.48,208.47,0.03]
[1756862483326,66.88099735,208.48,208.47,0.03]
[1756862483519,67.55099735,208.48,208.47,0.03]
[1756862483909,72.34762052,208.48,208.47,0.03]
[1756862497253,72.34762052,208.48,208.42,0.03]
[1756862497455,3.32451264,208.47,208.42,0.03]
[1756862498541,5.24754334,208.47,208.42,0.03]
[1756862498926,14.02207872,208.46,208.42,0.03]
[1756862499126,54.49659136,208.46,208.42,0.03]
[1756862499326,59.96367473,208.46,208.42,0.03]
[1756862499530,72.50503338,208.46,208.45,1e-08]
[1756862500755,0.42648471,208.43,208.42,0.03]
[1756862501054,66.90099735,208.43,208.42,0.03]
[1756862501356,103.43038269,208.43,208.42,0.03]
[1756862501533,103.43038269,208.43,208.32,82.45451264]
[1756862501534,2.65451264,208.37,208.35,0.11]
[1756862501932,2.65451264,208.37,208.32,79.8]
[1756862501933,2.65451264,208.37,208.36,0.11]
[1756862503058,7.45366798,208.37,208.36,0.11]
[1756862503467,8.95209022,208.37,208.36,0.11]
[1756862504442,8.95209022,208.37,208.34,0.11]
[1756862505059,37.82,208.36,208.32,79.8]
[1756862505358,41.97293488,208.36,208.32,79.91]
[1756862505854,4.15293488,208.35,208.32,79.91]
[1756862506256,37.82,208.36,208.32,79.91]
[1756862506257,41.97293488,208.36,208.33,0.11]
[1756862506450,41.97293488,208.36,208.32,79.8]
[1756862506762,41.97293488,208.36,208.32,79.91]
[1756862507069,46.77250687,208.36,208.32,79.91]
[1756862507439,46.77250687,208.36,208.32,79.8]
[1756862507840,8.95250687,208.36,208.33,0.11]
[1756862508142,41.97293488,208.4,208.34,0.11]
[1756862508341,41.97293488,208.4,208.34,4.26293488]
[1756862508551,41.97293488,208.4,208.35,0.11]
[1756862508859,4.15293488,208.38,208.33,4.15293488]
[1756862509060,9.67166182,208.39,208.33,4.26293488]
[1756862509448,8.95166182,208.39,208.33,4.26293488]
[1756862509647,8.95166182,208.39,208.33,4.15293488]